bitfinex-derivatives/quotes_SOLF0:USTF0_20240926
["timestamp","ask_amount","ask_price","bid_price","bid_amount"]
[1727327611059,3.3499,149.28,149.24,13.6707]
[1727327611362,10.32,149.29,149.24,13.6707]
[1727327611960,3.3501,149.27,149.24,13.6707]
[1727327613263,3.3501,149.27,149.24,3.3507]
[1727327613663,3.3501,149.27,149.24,13.6707]
[1727327614764,10.32,149.29,149.24,10.32]
[1727327615462,3.3501,149.27,149.24,13.6706]
[1727327617758,10.32,149.29,149.24,10.32]
[1727327618364,3.3501,149.27,149.24,13.6706]
[1727327622063,3.35,149.28,149.24,10.32]
[1727327622869,3.3501,149.27,149.24,13.6707]
[1727327625871,3.3499,149.28,149.24,10.32]
[1727327626771,3.3499,149.28,149.24,13.6707]
[1727327630277,3.3501,149.27,149.24,13.6707]
[1727327635277,10.32,149.29,149.22,1.3935]
[1727327635278,3.3497,149.29,149.26,3.3503]
[1727327639285,3.3497,149.29,149.26,13.6703]
[1727327640287,3.3492,149.31,149.28,10.32]
[1727327640489,3.3492,149.31,149.23,18.53594519]
[1727327640490,10.32,149.31,149.23,18.53594519]
[1727327640677,10.32,149.26,149.22,1.3935]
[1727327640877,10.32,149.26,149.22,11.7135]
[1727327641782,13.6704,149.26,149.22,15.0645]
[1727327642384,10.32,149.26,149.23,10.32]
[1727327642689,13.6702,149.27,149.24,10.32]
[1727327642883,3.3502,149.27,149.24,10.32]
[1727327643885,3.3502,149.27,149.24,13.6708]
[1727327644086,10.32,149.28,149.22,1.3935]
[1727327644087,13.67,149.28,149.25,10.32]
[1727327644385,1.8844,149.33,149.25,13.6704]
[1727327644386,10.32,149.3,149.25,13.6704]
[1727327644783,3.3498,149.29,149.25,13.6704]
[1727327647290,13.6699,149.28,149.25,13.6704]
[1727327647490,10.32,149.28,149.24,13.6707]
[1727327647984,10.32,149.28,149.25,3.3505]
[1727327648184,10.32,149.28,149.24,10.32]
[1727327649791,3.3501,149.27,149.24,13.6707]
[1727327653095,13.6699,149.28,149.24,13.6707]
[1727327653484,10.32,149.28,149.24,13.6707]
[1727327654895,3.3501,149.27,149.24,13.6707]
[1727327656895,13.6699,149.28,149.25,13.6705]
[1727327657495,13.6699,149.28,149.25,10.32]
[1727327660096,13.6699,149.28,149.25,13.6705]
[1727327660499,3.3499,149.28,149.25,13.6705]
[1727327660796,13.6697,149.29,149.26,3.3503]
[1727327661001,13.6697,149.29,149.26,13.6703]
[1727327661500,3.3497,149.29,149.26,13.6703]
[1727327664197,3.35,149.28,149.25,3.3505]
[1727327667001,3.35,149.28,149.24,13.6707]
[1727327673105,13.6697,149.29,149.25,13.6705]
[1727327673600,13.6697,149.29,149.26,3.3502]
[1727327674298,3.3497,149.29,149.26,3.3502]
[1727327675900,3.3496,149.3,149.26,3.3502]
[1727327676702,3.3496,149.29,149.26,3.3502]
[1727327678504,3.3496,149.29,149.25,10.32]
[1727327678505,10.32,149.29,149.25,3.3505]
[1727327678809,10.32,149.28,149.25,3.3505]
[1727327679804,13.67,149.28,149.25,3.3505]
[1727327682103,10.32,149.28,149.27,3.3501]
[1727327682306,10.32,149.31,149.25,10.32]
[1727327682505,10.32,149.31,149.27,10.32]
[1727327682705,3.3496,149.3,149.27,10.32]
[1727327683310,1.7866,149.38,149.29,10.32]
[1727327683604,1.7866,149.38,149.22,1.3935]
[1727327683605,10.32,149.35,149.3,10.32]
[1727327684905,3.3488,149.33,149.3,13.6693]
[1727327686106,3.3488,149.33,149.3,3.3493]
[1727327686304,3.3488,149.33,149.3,13.6693]
[1727327687107,3.3484,149.35,149.32,3.349]
[1727327687408,10.32,149.36,149.31,10.32]
[1727327688914,3.3486,149.34,149.31,13.6691]
[1727327690515,3.3487,149.33,149.3,3.3493]
[1727327690709,10.32,149.34,149.3,13.6693]
[1727327690910,10.32,149.36,149.31,10.32]
[1727327691312,3.3483,149.35,149.32,10.32]
[1727327693809,3.3481,149.36,149.32,10.32]
[1727327694610,3.3481,149.36,149.32,13.6689]
[1727327695113,10.32,149.37,149.32,10.32]
[1727327695114,13.6679,149.37,149.32,10.32]
[1727327695815,13.6679,149.37,149.33,3.3486]
[1727327698719,13.6679,149.37,149.34,3.3485]
[1727327701919,3.3481,149.36,149.34,3.3485]
[1727327703327,3.348,149.37,149.34,3.3485]
[1727327706231,10.32,149.38,149.35,10.32]
[1727327706232,3.3477,149.38,149.35,10.32]
[1727327707222,1.7834,149.43,149.3,106.51501265]
[1727327707223,8.0595,149.49,149.37,10.32]
[1727327707522,10.32,149.42,149.37,10.32]
[1727327708521,10.32,149.4,149.35,11.7181]
[1727327709232,3.3475,149.39,149.36,3.348]
[1727327709427,10.32,149.4,149.35,11.7181]
[1727327710916,3.3476,149.38,149.35,15.0663]
[1727327711526,10.32,149.39,149.35,1.3981]
[1727327711727,1.7815,149.48,149.3,105.17531265]
[1727327711728,10.32,149.36,149.3,105.17531265]
[1727327711928,10.32,149.36,149.32,10.32]
[1727327712541,10.32,149.36,149.32,3.3488]
[1727327712542,13.6682,149.36,149.32,3.3488]
[1727327712936,10.32,149.36,149.32,13.6688]
[1727327713931,3.3484,149.35,149.32,13.6688]
[1727327714130,3.3484,149.35,149.3,107.90431265]
[1727327714131,13.6684,149.35,149.31,3.3491]
[1727327715128,3.3486,149.34,149.3,111.25351265]
[1727327715428,10.32,149.33,149.3,111.25351265]
[1727327722847,13.6686,149.34,149.3,121.57351265]
[1727327723836,13.6686,149.34,149.31,3.3492]
[1727327727350,3.3484,149.35,149.32,13.6689]
[1727327727747,3.3482,149.36,149.32,13.6689]
[1727327727952,10.32,149.36,149.32,3.3489]
[1727327728553,3.3485,149.34,149.3,2.729]
[1727327728851,10.32,149.34,149.3,2.729]
[1727327729055,13.669,149.32,149.28,3.3498]
[1727327729350,13.669,149.32,149.28,13.6698]
[1727327731052,13.669,149.32,149.29,3.3496]
[1727327732655,13.669,149.32,149.26,1.3667]
[1727327732656,13.6692,149.31,149.27,3.3499]
[1727327734552,3.3495,149.3,149.26,11.6867]
[1727327734754,10.32,149.3,149.26,11.6867]
[1727327735257,3.3497,149.29,149.26,1.3667]
[1727327735451,3.3497,149.29,149.25,118.87587155]
[1727327739259,3.3497,149.29,149.26,3.3503]
[1727327740656,13.6696,149.3,149.26,13.6703]
[1727327741060,10.32,149.3,149.25,3.3505]
[1727327741256,10.32,149.28,149.25,3.3505]
[1727327741857,0.5044,149.38,149.24,1.3477]
[1727327741858,10.32,149.27,149.24,1.3477]
[1727327742056,10.32,149.26,149.22,10.32]
[1727327742264,10.32,149.27,149.23,10.32]
[1727327742560,10.32,149.27,149.2,2.728]
[1727327742760,10.32,149.27,149.22,10.32]
[1727327743557,10.32,149.27,149.24,3.3507]
[1727327744858,3.40033999,149.3,149.25,3.3505]
[1727327744859,10.32,149.29,149.25,3.3505]
[1727327745359,13.6698,149.29,149.25,13.6705]
[1727327745662,0.5044,149.38,149.28,3.3498]
[1727327745857,0.5044,149.38,149.27,10.32]
[1727327745858,13.6691,149.32,149.27,10.32]
[1727327746261,13.6691,149.32,149.28,3.3498]
[1727327746462,3.3492,149.31,149.27,10.32]
[1727327747062,10.32,149.31,149.27,10.32]
[1727327748358,3.3491,149.32,149.27,10.32]
[1727327748559,3.3487,149.34,149.27,10.32]
[1727327748767,10.32,149.32,149.27,10.32]
[1727327748961,10.32,149.32,149.29,10.32]
[1727327749162,10.32,149.33,149.29,10.32]
[1727327749360,0.5044,149.38,149.3,10.32]
[1727327749560,10.32,149.34,149.3,10.32]
[1727327749865,10.32,149.34,149.31,3.3492]
[1727327750262,13.6685,149.34,149.31,3.3492]
[1727327750856,3.3483,149.35,149.3,10.32]
[1727327751156,0.5044,149.38,149.3,10.32]
[1727327751157,10.32,149.34,149.3,10.32]
[1727327751761,13.6686,149.34,149.31,3.3491]
[1727327752162,13.6686,149.34,149.3,10.32]
[1727327753060,13.6686,149.34,149.3,13.6693]
[1727327755170,13.6686,149.34,149.31,3.3491]
[1727327755965,10.32,149.34,149.31,3.3491]
[1727327757778,13.6685,149.34,149.31,3.3491]
[1727327761266,13.6685,149.34,149.3,3.3493]
[1727327761475,13.6685,149.34,149.3,13.6693]
[1727327762172,13.6685,149.34,149.31,3.3492]
[1727327763364,3.3485,149.34,149.31,13.6692]
[1727327765177,3.3484,149.35,149.31,13.6692]
[1727327765374,3.3484,149.35,149.33,10.32]
[1727327765572,3.348,149.37,149.33,10.32]
[1727327765771,3.348,149.37,149.34,3.3485]
[1727327765972,10.32,149.38,149.35,10.32]
[1727327766777,13.6678,149.38,149.35,13.6683]
[1727327769181,3.3479,149.37,149.35,10.32]
[1727327772787,0.5045,149.45,149.36,10.32]
[1727327772981,1.3273,149.46,149.39,10.32]
[1727327773176,10.32,149.44,149.39,10.32]
[1727327773386,1.3273,149.46,149.39,10.32]
[1727327773580,10.32,149.44,149.39,10.32]
[1727327773780,3.3469,149.42,149.39,13.6673]
[1727327774183,1.3273,149.46,149.4,10.32]
[1727327774383,3.3466,149.43,149.4,10.32]
[1727327777199,3.3468,149.42,149.4,10.32]
[1727327778698,3.347,149.41,149.39,10.32]
[1727327779799,3.3468,149.42,149.39,10.32]
[1727327780497,3.3468,149.42,149.4,10.32]
[1727327782999,3.3468,149.42,149.38,3.3475]
[1727327783297,3.3468,149.42,149.37,13.6678]
[1727327783298,10.32,149.42,149.37,13.6678]
[1727327783889,3.3471,149.41,149.37,13.6678]
[1727327784890,3.3471,149.41,149.38,3.3476]
[1727327785201,3.3471,149.41,149.38,13.6676]
[1727327785602,3.3472,149.4,149.37,10.32]
[1727327787597,10.32,149.42,149.37,13.6678]
[1727327788897,3.3472,149.4,149.37,13.6678]
[1727327789498,3.347,149.41,149.39,10.32]
[1727327792102,1.3273,149.46,149.4,10.32]
[1727327792103,3.3468,149.42,149.4,10.32]
[1727327792303,10.32,149.44,149.4,10.32]
[1727327792695,3.3469,149.42,149.38,3.3475]
[1727327792897,3.3469,149.42,149.4,10.32]
[1727327793810,3.3469,149.42,149.41,10.32]
[1727327794409,0.5036,149.51,149.41,10.32]
[1727327794598,0.5036,149.51,149.34,3.41548041]
[1727327794599,10.32,149.51,149.46,10.32]
[1727327794797,13.68625731,149.51,149.46,10.32]
[1727327795003,10.32,149.49,149.46,10.32]
[1727327795206,10.32,149.49,149.45,10.32]
[1727327795701,3.3458,149.47,149.45,10.32]
[1727327796406,3.3455,149.48,149.45,10.32]
[1727327796703,10.32,149.49,149.39,3.9673]
[1727327796905,3.3463,149.44,149.39,3.9673]
[1727327797207,3.3463,149.44,149.42,10.32]
[1727327799404,3.3461,149.45,149.43,10.32]
[1727327800106,3.3459,149.46,149.44,10.32]
[1727327801103,3.3459,149.46,149.43,3.3465]
[1727327801300,3.3459,149.46,149.44,10.32]
[1727327804312,10.32,149.47,149.39,3.9673]
[1727327804509,10.32,149.47,149.42,10.32]
[1727327804712,10.32,149.46,149.42,10.32]
[1727327804911,3.3461,149.45,149.42,10.32]
[1727327806418,10.32,149.46,149.4,3.3471]
[1727327806419,3.3463,149.44,149.4,3.3471]
[1727327806716,3.3463,149.44,149.41,10.32]
[1727327807117,3.3463,149.44,149.43,10.32]
[1727327809526,3.3461,149.45,149.43,10.32]
[1727327809826,10.32,149.48,149.44,10.32]
[1727327810326,3.346,149.46,149.44,10.32]
[1727327811221,3.3457,149.47,149.44,10.32]
[1727327812816,3.3459,149.46,149.44,10.32]
[1727327816826,3.3461,149.45,149.42,3.3466]
[1727327817126,3.3461,149.45,149.43,10.32]
[1727327820424,10.32,149.45,149.41,10.32]
[1727327820830,10.32,149.45,149.39,3.9673]
[1727327821030,10.32,149.45,149.41,10.32]
[1727327821234,3.3463,149.44,149.41,10.32]
[1727327823129,3.3463,149.44,149.39,3.9673]
[1727327823130,10.32,149.45,149.39,7.3146]
[1727327823334,10.32,149.42,149.39,2.6157]
[1727327823531,10.32,149.42,149.39,1.3341]
[1727327823829,3.3473,149.4,149.38,62.87791618]
[1727327824228,10.32,149.44,149.39,10.32]
[1727327825028,13.67688148,149.44,149.39,10.32]
[1727327825331,3.3468,149.42,149.41,10.32]
[1727327826630,3.3468,149.42,149.39,13.6673]
[1727327828938,3.3467,149.43,149.39,13.6673]
[1727327831730,3.3467,149.43,149.41,10.32]
[1727327832126,3.3461,149.45,149.42,10.32]
[1727327832326,3.16,149.5,149.41,3.3469]
[1727327832327,10.32,149.48,149.43,10.32]
[1727327832934,3.3463,149.45,149.43,10.32]
[1727327834539,3.16,149.5,149.42,10.32]
[1727327834540,3.3463,149.44,149.42,10.32]
[1727327840032,3.3465,149.43,149.41,10.32]
[1727327844338,3.3464,149.44,149.41,10.32]
[1727327844642,3.3464,149.44,149.42,10.32]
[1727327849250,3.3461,149.45,149.42,13.6667]
[1727327849447,3.3461,149.45,149.42,10.32]
[1727327849848,3.3461,149.45,149.43,10.32]
[1727327850549,3.3459,149.46,149.44,10.32]
[1727327854355,3.3459,149.46,149.44,13.6663]
[1727327855351,3.3459,149.46,149.44,10.32]
[1727327856657,1.3806,149.5,149.43,10.32]
[1727327856658,3.3462,149.45,149.43,10.32]
[1727327856849,10.32,149.47,149.43,10.32]
[1727327857046,10.32,149.47,149.44,10.32]
[1727327857855,3.346,149.46,149.44,10.32]
[1727327858761,3.3461,149.45,149.42,3.3466]
[1727327861451,10.32,149.46,149.41,10.32]
[1727327861659,3.3463,149.44,149.41,13.6669]
[1727327863857,3.346,149.46,149.43,10.32]
[1727327864352,3.346,149.46,149.41,2.6929]
[1727327864353,13.65690236,149.47,149.41,16.3596]
[1727327864551,10.32,149.46,149.41,16.3596]
[1727327864754,10.32,149.46,149.41,13.0129]
[1727327864955,3.3464,149.44,149.41,13.0129]
[1727327866864,3.3465,149.43,149.4,14.9836]
[1727327867563,3.3465,149.43,149.4,11.6366]
[1727327868363,10.32,149.41,149.37,6.1063]
[1727327868565,10.32,149.41,149.37,2.7585]
[1727327869463,3.3472,149.4,149.37,6.1063]
[1727327871262,3.3472,149.4,149.37,16.4263]
[1727327871563,3.347,149.41,149.37,16.4263]
[1727327871967,3.347,149.41,149.39,10.32]
[1727327872365,3.3468,149.42,149.39,10.32]
[1727327873368,13.6668,149.42,149.39,10.32]
[1727327873571,10.32,149.41,149.37,6.1063]
[1727327873864,10.32,149.41,149.37,2.7585]
[1727327874071,3.3473,149.4,149.37,2.7585]
[1727327874861,13.667,149.41,149.37,16.4263]
[1727327875166,3.347,149.41,149.38,10.32]
[1727327875570,3.3468,149.42,149.38,13.6676]
[1727327875965,1.2771,149.49,149.41,10.32]
[1727327876274,10.32,149.46,149.41,10.32]
[1727327876465,3.3464,149.44,149.41,10.32]
[1727327878066,10.32,149.44,149.39,3.3473]
[1727327878269,10.32,149.44,149.39,13.6673]
[1727327878676,3.3466,149.43,149.39,13.6673]
[1727327880877,3.3466,149.43,149.41,10.32]
[1727327882177,3.3463,149.44,149.41,10.32]
[1727327882773,3.3467,149.42,149.41,10.32]
[1727327882973,3.3467,149.42,149.4,10.32]
[1727327883680,3.3466,149.43,149.4,10.32]
[1727327884777,3.3464,149.44,149.4,13.6671]
[1727327885173,3.3464,149.44,149.41,10.32]
[1727327885678,3.3464,149.44,149.41,13.6669]
[1727327888081,3.3464,149.44,149.41,3.3469]
[1727327888377,3.346,149.46,149.43,3.3465]
[1727327888580,3.346,149.46,149.43,10.32]
[1727327888981,3.3457,149.47,149.43,10.32]
[1727327889180,3.3457,149.47,149.44,10.32]
[1727327890481,3.3457,149.47,149.44,13.6661]
[1727327900295,10.32,149.47,149.42,10.32]
[1727327900488,10.32,149.46,149.42,10.32]
[1727327901188,3.3462,149.45,149.42,13.6666]
[1727327901494,3.3462,149.45,149.42,10.32]
[1727327901893,3.3462,149.45,149.43,10.32]
[1727327902286,3.3462,149.45,149.42,10.32]
[1727327903184,10.32,149.45,149.41,13.6668]
[1727327904793,3.3463,149.44,149.41,13.6668]
[1727327906094,3.3461,149.45,149.42,13.6667]
[1727327909490,3.3459,149.46,149.44,10.32]
[1727327910398,3.3457,149.47,149.44,13.6662]
[1727327910584,3.3457,149.47,149.44,10.32]
[1727327910784,10.32,149.48,149.44,10.32]
[1727327910988,10.32,149.47,149.43,10.32]
[1727327911297,3.3461,149.45,149.43,10.32]
[1727327913093,10.32,149.48,149.44,10.32]
[1727327913898,3.3458,149.46,149.44,10.32]
[1727327914887,3.3458,149.46,149.44,13.6663]
[1727327915593,3.3457,149.47,149.45,3.346]
[1727327915796,3.3457,149.47,149.44,10.32]
[1727327916299,3.3457,149.47,149.44,13.6662]
[1727327917394,3.3457,149.47,149.45,10.32]
[1727327917997,3.1448,149.54,149.46,10.32]
[1727327918299,3.1448,149.54,149.47,10.32]
[1727327918300,10.32,149.52,149.47,10.32]
[1727327918493,10.32,149.52,149.38,1.3962]
[1727327918494,10.32,149.5,149.41,11.38746203]
[1727327918796,10.32,149.5,149.45,10.32]
[1727327918994,10.32,149.5,149.46,10.32]
[1727327919794,3.3452,149.49,149.46,3.3457]
[1727327920798,3.3452,149.49,149.46,13.6657]
[1727327922199,3.345,149.5,149.46,13.6657]
[1727327922403,3.345,149.5,149.48,10.32]
[1727327923297,2.6171,149.61,149.48,13.6653]
[1727327923494,10.32,149.5,149.46,10.32]
[1727327923696,10.32,149.5,149.45,10.32]
[1727327923900,3.3453,149.49,149.46,3.3458]
[1727327924292,3.3453,149.49,149.46,13.6658]
[1727327924898,3.3453,149.49,149.46,10.32]
[1727327925900,3.3453,149.49,149.46,13.6658]
[1727327926299,13.6649,149.51,149.46,10.32]
[1727327926616,3.3449,149.51,149.48,10.32]
[1727327927301,3.3449,149.51,149.49,10.32]
[1727327928599,3.3446,149.52,149.5,10.32]
[1727327929112,3.3443,149.53,149.5,13.6649]
[1727327931707,3.3443,149.53,149.51,10.32]
[1727327933912,3.3441,149.54,149.51,13.6647]
[1727327935121,3.3443,149.53,149.51,13.6647]
[1727327935320,10.32,149.56,149.51,13.6647]
[1727327935717,3.344,149.55,149.52,13.6645]
[1727327936019,10.32,149.58,149.53,10.32]
[1727327936227,3.42403714,149.63,149.53,10.32]
[1727327936519,3.3438,149.55,149.53,10.32]
[1727327936933,3.3437,149.56,149.53,13.6642]
[1727327939116,3.3437,149.56,149.53,10.32]
[1727327941526,3.3437,149.56,149.55,10.32]
[1727327942126,10.32,149.59,149.55,10.32]
[1727327942127,3.3435,149.57,149.55,10.32]
[1727327943636,3.3433,149.58,149.56,10.32]
[1727327945932,2.6534,149.65,149.57,10.32]
[1727327946130,2.6534,149.65,149.58,10.32]
[1727327946348,3.3429,149.59,149.55,1.2793]
[1727327946537,3.3429,149.59,149.57,10.32]
[1727327948431,3.3429,149.59,149.58,10.32]
[1727327949135,3.3428,149.6,149.58,10.32]
[1727327949335,10.32,149.63,149.57,10.32]
[1727327949731,3.38996428,149.64,149.59,10.32]
[1727327949929,10.32,149.63,149.59,10.32]
[1727327950134,10.32,149.62,149.58,10.32]
[1727327950334,1.2754,149.68,149.58,10.32]
[1727327950635,10.32,149.62,149.58,10.32]
[1727327950830,3.343,149.59,149.58,10.32]
[1727327951432,3.3433,149.58,149.56,2.6672]
[1727327951632,10.32,149.6,149.56,12.9872]
[1727327952840,3.3433,149.58,149.56,12.9872]
[1727327953942,3.3434,149.57,149.56,12.9872]
[1727327955145,3.3434,149.57,149.56,11.6139]
[1727327955645,3.3434,149.57,149.56,10.32]
[1727327956443,3.3434,149.57,149.55,1.2793]
[1727327956644,3.3434,149.57,149.55,11.5993]
[1727327957144,3.3436,149.56,149.55,1.2793]
[1727327957344,3.3436,149.56,149.55,11.5993]
[1727327958243,3.3436,149.56,149.55,1.2793]
[1727327958945,3.3438,149.55,149.54,10.32]
[1727327960050,3.3437,149.56,149.54,10.32]
[1727327960448,3.3434,149.57,149.55,10.32]
[1727327960653,3.3434,149.57,149.56,10.32]
[1727327963950,3.3434,149.57,149.53,3.3442]
[1727327964154,10.32,149.59,149.55,10.32]
[1727327965550,3.3436,149.56,149.55,10.32]
[1727327969466,10.32,149.61,149.55,10.32]
[1727327969763,10.32,149.6,149.56,10.32]
[1727327970362,3.3436,149.57,149.56,10.32]
[1727327970762,1.3817,149.63,149.56,10.32]
[1727327970971,3.3431,149.58,149.57,10.32]
[1727327972458,3.3431,149.58,149.52,52.50356485]
[1727327972663,3.3431,149.58,149.57,10.32]
[1727327973268,3.343,149.59,149.57,10.32]
[1727327973469,3.343,149.59,149.58,10.32]
[1727327973670,10.32,149.62,149.57,10.32]
[1727327973869,3.3434,149.58,149.57,10.32]
[1727327976066,3.343,149.59,149.57,10.32]
[1727327976262,3.343,149.59,149.58,10.32]
[1727327977274,3.42396462,149.63,149.58,10.32]
[1727327977466,10.32,149.63,149.58,10.32]
[1727327977772,13.63761369,149.63,149.58,10.32]
[1727327978769,1.3433,149.68,149.61,10.32]
[1727327979072,10.32,149.64,149.59,10.32]
[1727327979278,3.3426,149.61,149.58,3.3431]
[1727327979473,3.3426,149.61,149.6,10.32]
[1727327980773,3.3426,149.61,149.59,10.32]
[1727327981972,3.3426,149.61,149.57,3.3433]
[1727327981973,3.3427,149.6,149.58,10.32]
[1727327983578,3.3426,149.61,149.58,10.32]
[1727327985172,3.3428,149.6,149.58,10.32]
[1727327985873,3.3428,149.6,149.59,10.32]
[1727327987278,3.3426,149.61,149.59,10.32]
[1727327987976,13.70984533,149.64,149.53,80.26]
[1727327988179,10.32,149.63,149.59,10.32]
[1727327989190,3.3427,149.61,149.59,10.32]
[1727327991377,10.32,149.62,149.53,80.26]
[1727327991577,1.3433,149.68,149.53,80.26]
[1727327991776,10.32,149.62,149.58,10.32]
[1727327992081,3.3431,149.59,149.58,10.32]
[1727327993080,3.3431,149.59,149.55,3.3437]
[1727327993281,3.3431,149.59,149.58,10.32]
[1727327994675,3.3427,149.6,149.58,10.32]
[1727327994879,3.3427,149.6,149.59,10.32]
[1727327999278,4.76257281,149.68,149.59,10.32]
[1727327999279,3.41927281,149.68,149.59,10.32]
[1727327999486,10.32,149.67,149.63,10.32]
[1727327999688,3.2613265,149.66,149.63,10.32]
[1727328000278,3.2613265,149.66,149.53,4.7294196]
[1727328000279,10.32,149.64,149.53,4.73085694]
[1727328000478,10.32,149.62,149.53,4.73085694]
[1727328000785,10.32,149.63,149.58,10.32]
[1727328001476,13.63449485,149.64,149.59,10.32]
[1727328002685,3.3426,149.61,149.59,10.32]
[1727328003778,13.63449485,149.64,149.59,10.32]
[1727328003985,3.3427,149.6,149.59,10.32]
[1727328004587,0.5008,149.7,149.59,13.6629]
[1727328004785,10.32,149.66,149.62,10.32]
[1727328004985,13.73559438,149.66,149.62,10.32]
[1727328005890,3.3423,149.63,149.62,10.32]
[1727328011290,10.32,149.65,149.6,10.32]
[1727328011486,10.32,149.64,149.6,10.32]
[1727328011897,3.3428,149.6,149.57,3.3434]
[1727328012092,3.3428,149.6,149.58,10.32]
[1727328014199,3.3429,149.59,149.56,6.0225]
[1727328014397,3.3429,149.59,149.58,10.32]
[1727328015491,10.32,149.62,149.57,10.32]
[1727328015700,10.32,149.6,149.56,2.6789]
[1727328015888,10.32,149.6,149.56,12.9989]
[1727328016289,10.32,149.6,149.56,11.6122]
[1727328016494,3.3410228,149.62,149.54,10.32]
[1727328016495,10.32,149.58,149.54,10.32]
[1727328016693,3.344,149.55,149.53,90.56]
[1727328017100,10.32,149.57,149.51,3.3447]
[1727328017297,3.344,149.54,149.52,62.82356485]
[1727328018099,10.32,149.55,149.5,4.0563]
[1727328018297,10.32,149.55,149.5,14.3763]
[1727328018501,3.3446,149.52,149.5,14.3763]
[1727328018700,10.32,149.54,149.5,12.9675]
[1727328019103,10.32,149.54,149.5,11.6165]
[1727328019602,3.3449,149.51,149.49,10.32]
[1727328021100,3.3445,149.52,149.5,10.32]
[1727328021410,3.3445,149.52,149.51,10.32]
[1727328021704,10.32,149.58,149.51,10.32]
[1727328021906,10.32,149.58,149.54,10.32]
[1727328022095,3.3442,149.54,149.53,10.32]
[1727328024907,6.682,149.68,149.53,10.32]
[1727328025100,6.682,149.68,149.49,3.3810579]
[1727328025101,10.32,149.61,149.56,10.32]
[1727328025403,3.3433,149.58,149.56,10.32]
[1727328025604,10.32,149.61,149.56,10.32]
[1727328026808,3.3434,149.57,149.56,10.32]
[1727328027603,3.3432,149.58,149.56,10.32]
[1727328028712,3.343,149.59,149.56,10.32]
[1727328028904,3.343,149.59,149.56,13.6636]
[1727328029408,3.343,149.59,149.58,10.32]
[1727328030908,3.3433,149.58,149.57,10.32]
[1727328031107,10.32,149.58,149.54,10.32]
[1727328031305,3.3438,149.56,149.5,2.6208]
[1727328031508,3.3438,149.56,149.53,10.32]
[1727328031710,3.3438,149.56,149.54,10.32]
[1727328034811,3.3438,149.55,149.53,10.32]
[1727328035508,3.344,149.54,149.53,10.32]
[1727328035915,1.2972,149.61,149.52,10.32]
[1727328035916,10.32,149.56,149.52,10.32]
[1727328036104,10.32,149.56,149.5,12.9408]
[1727328036306,3.3445,149.53,149.5,12.9408]
[1727328036609,10.32,149.54,149.5,12.9408]
[1727328037011,10.32,149.54,149.5,11.6394]